[Event "*** Titled Tuesday Blitz"]
[Site "Chess.com"]
[Date "2021.02.09"]
[Round "3"]
[White "FMKonstantin_Twitch"]
[Black "TigrVShlyape"]
[Result "1/2-1/2"]
[WhiteElo "2620"]
[BlackElo "2839"]
[TimeControl "180+1"]
[EndTime "10:30:26 PST"]
[Termination "Game drawn by repetition"]

1. d4 {[%clk 0:03:00.2]} 1... Nf6 {[%clk 0:02:57.4]} 2. Nf3 {[%clk 0:02:59.7]}
2... g6 {[%clk 0:02:57.1]} 3. g3 {[%clk 0:03:00]} 3... Bg7 {[%clk 0:02:56.9]} 4.
Bg2 {[%clk 0:03:00.9]} 4... O-O {[%clk 0:02:56.8]} 5. O-O {[%clk 0:03:01.8]}
5... d5 {[%clk 0:02:56.5]} 6. c3 {[%clk 0:02:55.7]} 6... c6 {[%clk 0:02:55]} 7.
Bf4 {[%clk 0:02:54.3]} 7... Bf5 {[%clk 0:02:54.8]} 8. Nbd2 {[%clk 0:02:53.3]}
8... Qc8 {[%clk 0:02:54.9]} 9. Qb3 {[%clk 0:02:50.7]} 9... a5 {[%clk 0:02:51.3]}
10. a4 {[%clk 0:02:49.4]} 10... Na6 {[%clk 0:02:51.3]} 11. Rfe1 {[%clk
0:02:37.8]} 11... Ne4 {[%clk 0:02:49.3]} 12. Nh4 {[%clk 0:02:32.7]} 12... Nxd2
{[%clk 0:02:46.6]} 13. Bxd2 {[%clk 0:02:33.6]} 13... Be6 {[%clk 0:02:39.8]} 14.
Qa3 {[%clk 0:02:13.8]} 14... Re8 {[%clk 0:02:29.7]} 15. e4 {[%clk 0:02:10.3]}
15... dxe4 {[%clk 0:02:29]} 16. Bxe4 {[%clk 0:02:11.2]} 16... Nc7 {[%clk
0:02:20.4]} 17. Ng2 {[%clk 0:02:03.7]} 17... Bd5 {[%clk 0:02:17.7]} 18. Nf4
{[%clk 0:01:58.5]} 18... Bxe4 {[%clk 0:02:17.2]} 19. Rxe4 {[%clk 0:01:59.4]}
19... e5 {[%clk 0:02:12.5]} 20. dxe5 {[%clk 0:01:57.7]} 20... Rxe5 {[%clk
0:02:11.8]} 21. Rae1 {[%clk 0:01:50.3]} 21... Rxe4 {[%clk 0:02:02.1]} 22. Rxe4
{[%clk 0:01:51.2]} 22... Qd7 {[%clk 0:01:59.8]} 23. Be3 {[%clk 0:01:44.6]} 23...
Nd5 {[%clk 0:01:31.6]} 24. Qb3 {[%clk 0:01:26.8]} 24... Nxe3 {[%clk 0:01:25]}
25. Rxe3 {[%clk 0:01:25.3]} 25... Bh6 {[%clk 0:01:20.6]} 26. Qc4 {[%clk
0:01:18.6]} 26... Qf5 {[%clk 0:00:44.9]} 27. Re7 {[%clk 0:01:14.9]} 27... Bxf4
{[%clk 0:00:42.6]} 28. Qxf4 {[%clk 0:01:12.2]} 28... Qxf4 {[%clk 0:00:42.3]} 29.
gxf4 {[%clk 0:01:13.1]} 29... b5 {[%clk 0:00:42.7]} 30. Rc7 {[%clk 0:01:08.3]}
30... bxa4 {[%clk 0:00:41.8]} 31. Rxc6 {[%clk 0:01:08.2]} 31... Rb8 {[%clk
0:00:41.9]} 32. Ra6 {[%clk 0:01:00.7]} 32... Rb5 {[%clk 0:00:40.5]} 33. Kg2
{[%clk 0:01:00.5]} 33... Kg7 {[%clk 0:00:39.6]} 34. Kg3 {[%clk 0:00:47.8]} 34...
Rxb2 {[%clk 0:00:35.6]} 35. Rxa5 {[%clk 0:00:46.6]} 35... Rb3 {[%clk 0:00:35.9]}
36. Rxa4 {[%clk 0:00:45.9]} 36... Rxc3+ {[%clk 0:00:36]} 37. Kg2 {[%clk
0:00:45.1]} 37... Rc5 {[%clk 0:00:35.7]} 38. Ra6 {[%clk 0:00:43.1]} 38... Rf5
{[%clk 0:00:31.8]} 39. Kg3 {[%clk 0:00:42.9]} 39... Rd5 {[%clk 0:00:29.5]} 40.
Rb6 {[%clk 0:00:37.5]} 40... Kf8 {[%clk 0:00:29.6]} 41. Rb7 {[%clk 0:00:36.7]}
41... Ke8 {[%clk 0:00:29.1]} 42. f3 {[%clk 0:00:34.1]} 42... Rd7 {[%clk
0:00:28.7]} 43. Rb8+ {[%clk 0:00:26.9]} 43... Ke7 {[%clk 0:00:28.7]} 44. f5
{[%clk 0:00:21.9]} 44... Kf6 {[%clk 0:00:25.9]} 45. fxg6 {[%clk 0:00:21.4]}
45... fxg6 {[%clk 0:00:25.9]} 46. Rb6+ {[%clk 0:00:20]} 46... Kg7 {[%clk
0:00:24.4]} 47. Rb4 {[%clk 0:00:20.9]} 47... Rd2 {[%clk 0:00:21.9]} 48. Re4
{[%clk 0:00:21.8]} 48... Kf6 {[%clk 0:00:21.5]} 49. Rf4+ {[%clk 0:00:21.4]}
49... Kg7 {[%clk 0:00:21.1]} 50. Re4 {[%clk 0:00:21.5]} 50... Rd1 {[%clk
0:00:20.5]} 51. Re7+ {[%clk 0:00:20.7]} 51... Kh6 {[%clk 0:00:20.2]} 52. Re5
{[%clk 0:00:21.1]} 52... Rg1+ {[%clk 0:00:19.5]} 53. Kf2 {[%clk 0:00:20.8]}
53... Rb1 {[%clk 0:00:19.2]} 54. Kg3 {[%clk 0:00:21]} 54... Rb4 {[%clk
0:00:19.1]} 55. h3 {[%clk 0:00:20.1]} 55... Rb7 {[%clk 0:00:18.1]} 56. Re6
{[%clk 0:00:19.6]} 56... Kg7 {[%clk 0:00:18.2]} 57. Re5 {[%clk 0:00:19.6]} 57...
Kf6 {[%clk 0:00:18.3]} 58. Ra5 {[%clk 0:00:19.4]} 58... Re7 {[%clk 0:00:18.4]}
59. Rd5 {[%clk 0:00:18.3]} 59... Re5 {[%clk 0:00:18.1]} 60. Rd6+ {[%clk
0:00:15.8]} 60... Kf5 {[%clk 0:00:17]} 61. Rd7 {[%clk 0:00:15.7]} 61... h5
{[%clk 0:00:15.9]} 62. Rf7+ {[%clk 0:00:15.5]} 62... Ke6 {[%clk 0:00:15.8]} 63.
Rf8 {[%clk 0:00:12.6]} 63... Rg5+ {[%clk 0:00:15.9]} 64. Kf4 {[%clk 0:00:11.6]}
64... Rg2 {[%clk 0:00:15.4]} 65. Re8+ {[%clk 0:00:11.6]} 65... Kf7 {[%clk
0:00:15.2]} 66. Re5 {[%clk 0:00:10.8]} 66... Kf6 {[%clk 0:00:15.1]} 67. Ra5
{[%clk 0:00:06.7]} 67... g5+ {[%clk 0:00:15.4]} 68. Ke3 {[%clk 0:00:06.9]} 68...
Rg3 {[%clk 0:00:14.5]} 69. Ra6+ {[%clk 0:00:06.7]} 69... Kf7 {[%clk 0:00:13.7]}
70. Ra7+ {[%clk 0:00:06.8]} 70... Ke6 {[%clk 0:00:14.1]} 71. Ra6+ {[%clk
0:00:06.9]} 71... Kf5 {[%clk 0:00:13.9]} 72. Ra5+ {[%clk 0:00:06.9]} 72... Kf6
{[%clk 0:00:13.6]} 73. Ra6+ {[%clk 0:00:07.8]} 73... Ke5 {[%clk 0:00:13.9]} 74.
Ra5+ {[%clk 0:00:07.9]} 74... Kf6 {[%clk 0:00:10.4]} 1/2-1/2

[Event "*** Titled Tuesday Blitz"]
[Site "Chess.com"]
[Date "2021.02.09"]
[Round "3"]
[White "pavelalexandru07"]
[Black "Fiona"]
[Result "1-0"]
[WhiteElo "2328"]
[BlackElo "2103"]
[TimeControl "180+1"]
[EndTime "10:30:28 PST"]
[Termination "pavelalexandru07 won by resignation"]

1. d4 {[%clk 0:03:00.9]} 1... d6 {[%clk 0:02:59.1]} 2. e4 {[%clk 0:02:51.2]}
2... Nf6 {[%clk 0:02:58.2]} 3. Nc3 {[%clk 0:02:48.7]} 3... Nbd7 {[%clk
0:02:56.4]} 4. f4 {[%clk 0:02:48.5]} 4... e5 {[%clk 0:02:56]} 5. Nf3 {[%clk
0:02:42]} 5... exd4 {[%clk 0:02:49.9]} 6. Nxd4 {[%clk 0:02:40.9]} 6... Nc5
{[%clk 0:02:44.3]} 7. Bd3 {[%clk 0:02:39.8]} 7... Bg4 {[%clk 0:02:42.4]} 8. Nf3
{[%clk 0:02:39.8]} 8... Be7 {[%clk 0:02:36.8]} 9. h3 {[%clk 0:02:39.9]} 9...
Bxf3 {[%clk 0:02:34.1]} 10. Qxf3 {[%clk 0:02:40]} 10... Nxd3+ {[%clk 0:02:33.8]}
11. Qxd3 {[%clk 0:02:35.4]} 11... c6 {[%clk 0:02:30.2]} 12. O-O {[%clk
0:02:32.2]} 12... O-O {[%clk 0:02:22.8]} 13. Be3 {[%clk 0:02:27.8]} 13... Qc7
{[%clk 0:02:15.6]} 14. Rad1 {[%clk 0:02:25.1]} 14... b6 {[%clk 0:02:04]} 15. g4
{[%clk 0:02:13.8]} 15... Rfe8 {[%clk 0:01:57.5]} 16. Bd4 {[%clk 0:02:09.2]}
16... d5 {[%clk 0:01:51.6]} 17. e5 {[%clk 0:02:08.6]} 17... Nd7 {[%clk 0:01:50]}
18. Bf2 {[%clk 0:01:38.7]} 18... Nc5 {[%clk 0:01:39.3]} 19. Qf3 {[%clk
0:01:38.8]} 19... Rad8 {[%clk 0:01:34.3]} 20. Rfe1 {[%clk 0:01:27.7]} 20... Ne6
{[%clk 0:01:25.9]} 21. Bg3 {[%clk 0:01:21]} 21... d4 {[%clk 0:00:55.1]} 22. Ne4
{[%clk 0:01:19.2]} 22... Nc5 {[%clk 0:00:55.4]} 23. Nf2 {[%clk 0:00:59.2]} 23...
Qd7 {[%clk 0:00:45.3]} 24. f5 {[%clk 0:00:47.5]} 24... Qd5 {[%clk 0:00:42.4]}
25. Kg2 {[%clk 0:00:33.2]} 25... Bg5 {[%clk 0:00:40]} 26. h4 {[%clk 0:00:25.1]}
26... Qxf3+ {[%clk 0:00:38.1]} 27. Kxf3 {[%clk 0:00:25.2]} 27... Be3 {[%clk
0:00:38.3]} 28. Ne4 {[%clk 0:00:21]} 28... Nxe4 {[%clk 0:00:34.5]} 29. Kxe4
{[%clk 0:00:21.3]} 29... c5 {[%clk 0:00:33.1]} 30. b3 {[%clk 0:00:21.5]} 30...
Kf8 {[%clk 0:00:25.4]} 31. c4 {[%clk 0:00:18.3]} 31... Rd7 {[%clk 0:00:25.3]}
32. Kd3 {[%clk 0:00:17.6]} 32... Red8 {[%clk 0:00:24.8]} 33. Re2 {[%clk
0:00:16.9]} 33... a6 {[%clk 0:00:18.3]} 34. Rf1 {[%clk 0:00:16.3]} 34... h6
{[%clk 0:00:17.3]} 35. Rf3 {[%clk 0:00:06.9]} 35... Kg8 {[%clk 0:00:17.3]} 36.
Re1 {[%clk 0:00:05.8]} 36... b5 {[%clk 0:00:17.2]} 37. Ref1 {[%clk 0:00:05.2]}
37... bxc4+ {[%clk 0:00:17.6]} 38. bxc4 {[%clk 0:00:03.9]} 38... Rb7 {[%clk
0:00:18.3]} 39. e6 {[%clk 0:00:03.8]} 39... Rb2 {[%clk 0:00:17.5]} 40. Be1
{[%clk 0:00:03.4]} 40... fxe6 {[%clk 0:00:11.2]} 41. fxe6 {[%clk 0:00:03.5]}
41... Re8 {[%clk 0:00:11.8]} 42. Bg3 {[%clk 0:00:02.2]} 42... Rd2+ {[%clk
0:00:06.9]} 43. Ke4 {[%clk 0:00:02.6]} 43... Rxe6+ {[%clk 0:00:07.6]} 44. Kd5
{[%clk 0:00:03.3]} 44... Re8 {[%clk 0:00:06.8]} 45. Kd6 {[%clk 0:00:03.4]} 45...
Rb2 {[%clk 0:00:05.2]} 46. Kd7 {[%clk 0:00:03.8]} 46... Ra8 {[%clk 0:00:04.4]}
47. Bd6 {[%clk 0:00:03.1]} 47... Rb7+ {[%clk 0:00:04.7]} 48. Kc6 {[%clk
0:00:03.1]} 48... Rba7 {[%clk 0:00:03.5]} 49. Kd5 {[%clk 0:00:02.9]} 49... Rd8
{[%clk 0:00:03.2]} 50. Kc6 {[%clk 0:00:03]} 50... Rad7 {[%clk 0:00:03.2]} 51.
Rf8+ {[%clk 0:00:03.6]} 51... Kh7 {[%clk 0:00:01.9]} 52. Rxd8 {[%clk 0:00:04]}
52... Rxd8 {[%clk 0:00:02.8]} 53. Kc7 {[%clk 0:00:04.2]} 53... Ra8 {[%clk
0:00:02.9]} 54. Kb7 {[%clk 0:00:04.3]} 54... Rg8 {[%clk 0:00:03.5]} 55. Kxa6
{[%clk 0:00:04.4]} 55... g6 {[%clk 0:00:03.9]} 56. Kb5 {[%clk 0:00:04.1]} 56...
Rg7 {[%clk 0:00:04.4]} 57. Kc6 {[%clk 0:00:04.3]} 57... Ra7 {[%clk 0:00:04.8]}
58. Ra1 {[%clk 0:00:02.4]} 58... d3 {[%clk 0:00:04.3]} 59. a4 {[%clk 0:00:02.9]}
59... d2 {[%clk 0:00:04.5]} 60. Kb5 {[%clk 0:00:03.5]} 60... Rf7 {[%clk
0:00:04]} 61. a5 {[%clk 0:00:03.5]} 61... Rf2 {[%clk 0:00:03.7]} 62. a6 {[%clk
0:00:03.5]} 62... Re2 {[%clk 0:00:04.6]} 63. a7 {[%clk 0:00:03.3]} 63... Re1
{[%clk 0:00:05.5]} 64. a8=Q {[%clk 0:00:03.3]} 64... d1=Q {[%clk 0:00:05]} 65.
Rxd1 {[%clk 0:00:02.8]} 65... Rxd1 {[%clk 0:00:05.9]} 66. Qb7+ {[%clk
0:00:02.9]} 66... Kg8 {[%clk 0:00:06.1]} 67. Qc8+ {[%clk 0:00:03.6]} 67... Kf7
{[%clk 0:00:06.4]} 68. Qd7+ {[%clk 0:00:04.3]} 68... Kg8 {[%clk 0:00:05]} 69.
Qe8+ {[%clk 0:00:04.2]} 69... Kh7 {[%clk 0:00:04]} 70. Qf7+ {[%clk 0:00:04.4]}
1-0

[Event "*** Titled Tuesday Blitz"]
[Site "Chess.com"]
[Date "2021.02.09"]
[Round "3"]
[White "dennisodessa"]
[Black "Azerichess"]
[Result "0-1"]
[WhiteElo "2466"]
[BlackElo "2976"]
[TimeControl "180+1"]
[EndTime "10:30:32 PST"]
[Termination "Azerichess won by checkmate"]

1. d4 {[%clk 0:03:00.9]} 1... f5 {[%clk 0:02:58.5]} 2. c4 {[%clk 0:02:54.1]}
2... Nf6 {[%clk 0:02:58.8]} 3. Nc3 {[%clk 0:02:51.8]} 3... d6 {[%clk 0:02:58.7]}
4. Nf3 {[%clk 0:02:48.4]} 4... g6 {[%clk 0:02:58.3]} 5. g3 {[%clk 0:02:48.5]}
5... Bg7 {[%clk 0:02:58.6]} 6. Bg2 {[%clk 0:02:49.4]} 6... O-O {[%clk
0:02:59.4]} 7. O-O {[%clk 0:02:49.9]} 7... c6 {[%clk 0:02:53.9]} 8. Qc2 {[%clk
0:02:39.6]} 8... Nbd7 {[%clk 0:02:19.1]} 9. e4 {[%clk 0:02:39.2]} 9... fxe4
{[%clk 0:02:15.1]} 10. Nxe4 {[%clk 0:02:40.1]} 10... Nxe4 {[%clk 0:02:15.7]} 11.
Qxe4 {[%clk 0:02:40.7]} 11... Nf6 {[%clk 0:02:16.6]} 12. Qe2 {[%clk 0:02:31.8]}
12... Bf5 {[%clk 0:02:11.3]} 13. Re1 {[%clk 0:02:26.6]} 13... Qb6 {[%clk
0:02:06.7]} 14. b3 {[%clk 0:02:10.3]} 14... Rae8 {[%clk 0:01:53.4]} 15. Bb2
{[%clk 0:02:10]} 15... d5 {[%clk 0:01:46.8]} 16. Ng5 {[%clk 0:01:56.2]} 16... e6
{[%clk 0:01:40.3]} 17. Nf3 {[%clk 0:01:43.5]} 17... Ne4 {[%clk 0:01:34.9]} 18.
c5 {[%clk 0:01:30.7]} 18... Qa5 {[%clk 0:01:28.6]} 19. a3 {[%clk 0:01:19.4]}
19... g5 {[%clk 0:01:25.6]} 20. b4 {[%clk 0:01:18.8]} 20... Qa4 {[%clk
0:01:25.6]} 21. Nd2 {[%clk 0:01:19.5]} 21... Nf6 {[%clk 0:01:15.3]} 22. Qd1
{[%clk 0:01:19.8]} 22... Bc2 {[%clk 0:01:11.5]} 23. Qe2 {[%clk 0:01:04.6]} 23...
h6 {[%clk 0:01:12.1]} 24. Nf3 {[%clk 0:01:03.7]} 24... Nd7 {[%clk 0:01:06.7]}
25. Ne5 {[%clk 0:00:58.3]} 25... Nxe5 {[%clk 0:01:04]} 26. dxe5 {[%clk
0:00:59.2]} 26... Bg6 {[%clk 0:01:03.6]} 27. Qd1 {[%clk 0:00:53.2]} 27... Qxd1
{[%clk 0:01:00]} 28. Raxd1 {[%clk 0:00:54.1]} 28... g4 {[%clk 0:00:59.9]} 29.
Re3 {[%clk 0:00:49.9]} 29... h5 {[%clk 0:01:00.8]} 30. f4 {[%clk 0:00:49.5]}
30... gxf3 {[%clk 0:00:59.5]} 31. Rxf3 {[%clk 0:00:49.7]} 31... Rf5 {[%clk
0:00:52.4]} 32. Rxf5 {[%clk 0:00:42.5]} 32... Bxf5 {[%clk 0:00:53.3]} 33. Bf3
{[%clk 0:00:40.6]} 33... h4 {[%clk 0:00:53.4]} 34. gxh4 {[%clk 0:00:30.7]} 34...
a5 {[%clk 0:00:52]} 35. Kf2 {[%clk 0:00:24.6]} 35... Ra8 {[%clk 0:00:49.2]} 36.
Ra1 {[%clk 0:00:24.5]} 36... Kh7 {[%clk 0:00:48.7]} 37. Ke2 {[%clk 0:00:23.1]}
37... Bh6 {[%clk 0:00:47.7]} 38. Bc3 {[%clk 0:00:20.3]} 38... a4 {[%clk
0:00:47]} 39. Rg1 {[%clk 0:00:16]} 39... Rf8 {[%clk 0:00:47]} 40. Bd2 {[%clk
0:00:14.7]} 40... Bd3+ {[%clk 0:00:40.5]} 41. Kxd3 {[%clk 0:00:12.2]} 41...
Rxf3+ {[%clk 0:00:40.9]} 42. Ke2 {[%clk 0:00:12.7]} 42... Rxa3 {[%clk
0:00:41.5]} 43. Bxh6 {[%clk 0:00:12.1]} 43... Kxh6 {[%clk 0:00:42.4]} 44. Rg8
{[%clk 0:00:11]} 44... Rb3 {[%clk 0:00:42.3]} 45. Re8 {[%clk 0:00:09.4]} 45...
Kg6 {[%clk 0:00:38.6]} 46. Rxe6+ {[%clk 0:00:09.7]} 46... Kf5 {[%clk 0:00:39.1]}
47. Re8 {[%clk 0:00:09.2]} 47... Rxb4 {[%clk 0:00:36.5]} 48. h5 {[%clk
0:00:07.7]} 48... Rh4 {[%clk 0:00:33.2]} 49. Rb8 {[%clk 0:00:05.8]} 49... a3
{[%clk 0:00:30.7]} 50. Rxb7 {[%clk 0:00:05.4]} 50... a2 {[%clk 0:00:30.5]} 51.
Ra7 {[%clk 0:00:04.7]} 51... Rxh5 {[%clk 0:00:31.1]} 52. Kd3 {[%clk 0:00:02.2]}
52... Rxh2 {[%clk 0:00:32]} 53. Kd4 {[%clk 0:00:02.1]} 53... Rh4+ {[%clk
0:00:31.2]} 54. Kd3 {[%clk 0:00:01.9]} 54... Kxe5 {[%clk 0:00:22.3]} 55. Re7+
{[%clk 0:00:01.9]} 55... Kf6 {[%clk 0:00:21.8]} 56. Ra7 {[%clk 0:00:02.8]} 56...
Rh3+ {[%clk 0:00:19]} 57. Kd4 {[%clk 0:00:02.8]} 57... Rh4+ {[%clk 0:00:19.6]}
58. Kd3 {[%clk 0:00:03]} 58... Rh2 {[%clk 0:00:20.5]} 59. Kd4 {[%clk 0:00:03.6]}
59... Ke6 {[%clk 0:00:20.8]} 60. Kd3 {[%clk 0:00:03.1]} 60... Rh3+ {[%clk
0:00:20.6]} 61. Kd4 {[%clk 0:00:02.9]} 61... Rh4+ {[%clk 0:00:20.8]} 62. Kd3
{[%clk 0:00:03.3]} 62... Rc4 {[%clk 0:00:21.1]} 63. Rxa2 {[%clk 0:00:02.5]}
63... Rxc5 {[%clk 0:00:21.6]} 64. Ra8 {[%clk 0:00:03.1]} 64... Kd6 {[%clk
0:00:21.7]} 65. Rd8+ {[%clk 0:00:02.4]} 65... Kc7 {[%clk 0:00:21.7]} 66. Ra8
{[%clk 0:00:03]} 66... Rc4 {[%clk 0:00:22.1]} 67. Ra2 {[%clk 0:00:03.5]} 67...
Kd6 {[%clk 0:00:22.4]} 68. Ra6 {[%clk 0:00:02.7]} 68... Rh4 {[%clk 0:00:22]} 69.
Ra8 {[%clk 0:00:02.7]} 69... Rh3+ {[%clk 0:00:21.7]} 70. Kd4 {[%clk 0:00:03.1]}
70... c5# {[%clk 0:00:20.8]} 0-1

[Event "*** Titled Tuesday Blitz"]
[Site "Chess.com"]
[Date "2021.02.09"]
[Round "3"]
[White "FontVella8"]
[Black "hleol"]
[Result "1-0"]
[WhiteElo "2573"]
[BlackElo "2394"]
[TimeControl "180+1"]
[EndTime "10:30:34 PST"]
[Termination "FontVella8 won by resignation"]

1. e4 {[%clk 0:02:40]} 1... c6 {[%clk 0:02:58.7]} 2. d4 {[%clk 0:02:39.8]} 2...
d5 {[%clk 0:02:58.6]} 3. e5 {[%clk 0:02:37.9]} 3... c5 {[%clk 0:02:58.6]} 4.
dxc5 {[%clk 0:02:37.2]} 4... e6 {[%clk 0:02:57.9]} 5. a3 {[%clk 0:02:35.1]} 5...
Bxc5 {[%clk 0:02:57.2]} 6. b4 {[%clk 0:02:34.6]} 6... Bb6 {[%clk 0:02:56.9]} 7.
Qg4 {[%clk 0:02:34.8]} 7... Ne7 {[%clk 0:02:56.4]} 8. Nf3 {[%clk 0:02:34.4]}
8... Ng6 {[%clk 0:02:54.9]} 9. Bd3 {[%clk 0:02:30.9]} 9... Nc6 {[%clk
0:02:49.8]} 10. Qg3 {[%clk 0:02:31]} 10... Nd4 {[%clk 0:02:42]} 11. Bb2 {[%clk
0:02:28.7]} 11... Nxf3+ {[%clk 0:02:41.1]} 12. Qxf3 {[%clk 0:02:28.7]} 12... Qc7
{[%clk 0:02:38.3]} 13. O-O {[%clk 0:02:23.2]} 13... O-O {[%clk 0:02:32.6]} 14.
Qg3 {[%clk 0:02:21.1]} 14... Bd7 {[%clk 0:02:30]} 15. Nd2 {[%clk 0:02:18.7]}
15... a5 {[%clk 0:02:27.3]} 16. h4 {[%clk 0:02:18.1]} 16... axb4 {[%clk
0:02:20.5]} 17. axb4 {[%clk 0:02:17.8]} 17... Ba4 {[%clk 0:02:20.2]} 18. h5
{[%clk 0:02:12.6]} 18... Ne7 {[%clk 0:02:19.4]} 19. Nf3 {[%clk 0:02:09.9]} 19...
h6 {[%clk 0:02:05.8]} 20. Rac1 {[%clk 0:01:58.2]} 20... Bd7 {[%clk 0:01:48.2]}
21. Nd4 {[%clk 0:01:56]} 21... Ra2 {[%clk 0:01:44.4]} 22. Bc3 {[%clk 0:01:27.1]}
22... Kh8 {[%clk 0:01:34.2]} 23. Ne2 {[%clk 0:01:15.5]} 23... Nf5 {[%clk
0:01:15.5]} 24. Bxf5 {[%clk 0:01:10.1]} 24... exf5 {[%clk 0:01:16.4]} 25. Nf4
{[%clk 0:01:00.8]} 25... Be6 {[%clk 0:01:14.3]} 26. Rfd1 {[%clk 0:00:56.4]}
26... Ra3 {[%clk 0:01:13.9]} 27. Rd3 {[%clk 0:00:55.8]} 27... Rc8 {[%clk
0:01:04]} 28. Bb2 {[%clk 0:00:54.9]} 28... Rxd3 {[%clk 0:01:03.5]} 29. Qxd3
{[%clk 0:00:53.2]} 29... Qc4 {[%clk 0:01:03.7]} 30. Qxc4 {[%clk 0:00:46.3]}
30... Rxc4 {[%clk 0:01:03.6]} 31. Nd3 {[%clk 0:00:47]} 31... f4 {[%clk
0:00:59.9]} 32. Kf1 {[%clk 0:00:42.3]} 32... f3 {[%clk 0:00:53.6]} 33. gxf3
{[%clk 0:00:40.7]} 33... Bf5 {[%clk 0:00:52]} 34. Ke2 {[%clk 0:00:36.8]} 34...
Bxd3+ {[%clk 0:00:46.7]} 35. cxd3 {[%clk 0:00:33.1]} 35... Rxb4 {[%clk
0:00:46.9]} 36. Rc2 {[%clk 0:00:30.6]} 36... Rh4 {[%clk 0:00:43.2]} 37. d4
{[%clk 0:00:29.4]} 37... Rxh5 {[%clk 0:00:42.6]} 38. Rc8+ {[%clk 0:00:27.5]}
38... Kh7 {[%clk 0:00:42.3]} 39. Rb8 {[%clk 0:00:28]} 39... Rh4 {[%clk
0:00:42.3]} 40. Ke3 {[%clk 0:00:26.8]} 40... Rh1 {[%clk 0:00:37.4]} 41. Rxb7
{[%clk 0:00:26.7]} 41... Re1+ {[%clk 0:00:37.7]} 42. Kf4 {[%clk 0:00:25.8]}
42... Ba5 {[%clk 0:00:36.6]} 43. Rxf7 {[%clk 0:00:24.9]} 43... Bd2+ {[%clk
0:00:36.1]} 44. Kf5 {[%clk 0:00:24]} 44... Re2 {[%clk 0:00:31.7]} 45. Ba3 {[%clk
0:00:19.8]} 45... Rxf2 {[%clk 0:00:31]} 46. Ke6 {[%clk 0:00:19.9]} 46... Re2
{[%clk 0:00:26.3]} 47. f4 {[%clk 0:00:19.5]} 47... Bc3 {[%clk 0:00:24.4]} 48.
Bf8 {[%clk 0:00:17.6]} 48... Bxd4 {[%clk 0:00:22.5]} 49. Rxg7+ {[%clk
0:00:16.4]} 49... Kh8 {[%clk 0:00:22.6]} 50. Rg6 {[%clk 0:00:13.4]} 50... Rf2
{[%clk 0:00:20.6]} 51. Be7 {[%clk 0:00:13.3]} 51... Rxf4 {[%clk 0:00:20]} 52.
Bf6+ {[%clk 0:00:13.7]} 52... Kh7 {[%clk 0:00:20.1]} 53. Rg7+ {[%clk 0:00:14.1]}
53... Kh8 {[%clk 0:00:20.5]} 54. Rg4+ {[%clk 0:00:14.7]} 54... Rxf6+ {[%clk
0:00:20.8]} 55. exf6 {[%clk 0:00:15.6]} 55... Bc5 {[%clk 0:00:19.6]} 56. f7
{[%clk 0:00:12.9]} 56... d4 {[%clk 0:00:19.8]} 57. Rg8+ {[%clk 0:00:13]} 57...
Kh7 {[%clk 0:00:20]} 58. Rc8 {[%clk 0:00:13.4]} 58... Bb4 {[%clk 0:00:19.6]} 59.
Rc4 {[%clk 0:00:13.2]} 59... Ba3 {[%clk 0:00:17.7]} 60. Rxd4 {[%clk 0:00:13.2]}
60... h5 {[%clk 0:00:18.6]} 61. Rh4 {[%clk 0:00:07.9]} 61... Kh6 {[%clk
0:00:18.7]} 62. Rh1 {[%clk 0:00:08.2]} 62... Kg5 {[%clk 0:00:17.9]} 63. Rh3
{[%clk 0:00:08.1]} 63... Bb4 {[%clk 0:00:17.2]} 64. Rb3 {[%clk 0:00:07.7]} 64...
Bc5 {[%clk 0:00:16.8]} 65. Kd5 {[%clk 0:00:07.8]} 65... Bf8 {[%clk 0:00:16.5]}
66. Ke6 {[%clk 0:00:06.9]} 66... h4 {[%clk 0:00:16.2]} 67. Rb8 {[%clk
0:00:06.2]} 67... Ba3 {[%clk 0:00:15.4]} 68. Ra8 {[%clk 0:00:06.1]} 68... Bc5
{[%clk 0:00:14.7]} 69. Ra5 {[%clk 0:00:06.1]} 69... h3 {[%clk 0:00:14.9]} 70.
Rxc5+ {[%clk 0:00:06.2]} 70... Kg4 {[%clk 0:00:15.8]} 71. f8=Q {[%clk
0:00:05.6]} 71... h2 {[%clk 0:00:16.7]} 72. Qf5+ {[%clk 0:00:06.3]} 1-0